Workbook

Sheet Лист1
A3: 1 день
B4: № рец. | C4: Наименование блюд | D4: Выход | E4: Белки | F4: Жиры | G4: Углеводы | H4: Калорийность | I4: Выход | J4: Белки | K4: Жиры | L4: Углеводы | M4: Калорийность
A5: день | B5: Завтрак | D5: 1-3 лет | I5: 3-7 лет
B6: т/к.46 сб2005г№173 | C6: Рисовая каша | D6: 150 | E6: 2.32 | F6: 3.96 | G6: 24.08 | H6: 142.00 | I6: 200 | J6: 3.09 | K6: 4.07 | L6: 32.09 | M6: 177
B7: т/к132.сб2007г№132 | C7: Чай с сахаром | D7: 150 | E7: 0.2 | F7: 0 | G7: 10.5 | H7: 42 | I7: 180 | J7: 0.2 | K7: 0 | L7: 12.6 | M7: 50.4
B8: т/к13.сб2010г№7 | C8: Сыр | D8: 10 | E8: 2.32 | F8: 2.95 | G8: 0 | H8: 36 | I8: 15 | J8: 3.48 | K8: 4.43 | L8: 0 | M8: 54
B9: т/к1.сб2011г № 1 | C9: Бутерброд с маслом | D9: 30 | E9: 2.01 | F9: 3.87 | G9: 12.13 | H9: 91.33 | I9: 35/5 | J9: 2.81 | K9: 3.97 | L9: 16.96 | M9: 114.66
B10: 2 завтрак
B11: Т/к7.сб2010г.№400 | C11: Молоко кипяченое | D11: 150 | E11: 4.58 | F11: 4.08 | G11: 7.58 | H11: 85 | I11: 180 | J11: 5.48 | K11: 4.88 | L11: 9.07 | M11: 102
B12: Обед
B13: т/к48.сб2004г. | C13: Капуста тушеная | D13: 50 | E13: 1.12 | F13: 2.48 | G13: 2.65 | H13: 40 | I13: 50 | J13: 1.12 | K13: 2.48 | L13: 2.65 | M13: 30.3
B14: Т/к 24, сб.2006г.№98 | C14: Суп картофельный с вермешелью | D14: 200 | E14: 2.22 | F14: 1.88 | G14: 13.98 | H14: 89.78 | I14: 200 | J14: 2.22 | K14: 1.88 | L14: 13.98 | M14: 89.78
B15: т/к20.сб2011г №168 | C15: Бульон костный | D15: 150 | E15: 28.12 | F15: 40.5 | G15: 1.04 | H15: 69.66 | I15: 187.3 | J15: 35.16 | K15: 50.67 | L15: 1.32 | M15: 87.15
B16: т/к 52сб 2011 №276 | C16: Жаркое по домашн. | D16: 150 | E16: 1.83 | F16: 4.7 | G16: 16.32 | H16: 180.88 | I16: 200 | J16: 24.47 | K16: 6.27 | L16: 21.76 | M16: 241.17
B17: Т/к 11сб.2011 г.№376 Компот из сухофруктов | C17: Компот из сухофруктов | D17: 150 | E17: 0.33 | F17: 0.02 | G17: 20.83 | H17: 84.75 | I17: 180 | J17: 0.4 | K17: 0.02 | L17: 14.99 | M17: 101.7
B18: т/к122.сб2012г | C18: Хлеб пшеничный | D18: 30 | E18: 1.82 | F18: 0.642 | G18: 12.558 | H18: 94 | I18: 30 | J18: 1.82 | K18: 0.642 | L18: 12.558 | M18: 94
B19: т/к123.сб2012г | C19: Хлеб ржаной | D19: 40 | E19: 3.3 | F19: 0.6 | G19: 16.7 | H19: 87 | I19: 30 | J19: 3.3 | K19: 0.6 | L19: 16.7 | M19: 87
B20: Уплотненный полдник
B21: Т/к 174, сб. 2004 г. | C21: Пирог с консервой | D21: 80 | E21: 3.1 | F21: 1.6 | G21: 27.7 | H21: 137.5 | I21: 100 | J21: 8 | K21: 5.52 | L21: 28.32 | M21: 196.8
B22: т/к 20.сб2004г. | C22: Кисель | D22: 150 | E22: 0 | F22: 0 | G22: 13.5 | H22: 46.5 | I22: 200 | J22: 0 | K22: 0 | L22: 18 | M22: 60
B23: т/к12.сб2010г№368 | C23: Фрукт | D23: 100 | E23: 0.4 | F23: 0 | G23: 9.8 | H23: 144 | I23: 114 | J23: 0.4 | K23: 0 | L23: 9.8 | M23: 44
B24: т/к154.сб2005г. | C24: Кекс | D24: 40 | E24: 1.8 | F24: 8 | G24: 24.8 | H24: 168 | I24: 40 | J24: 1.8 | K24: 8 | L24: 24.8 | M24: 168
C25: Итого | D25: =SUM(D6:D24) -> 1630 | E25: 55.47 | F25: 75.282 | G25: 214.168 | H25: 1538.4 | I25: 1906.3 | J25: =SUM(J6:J23) -> 91.95 | K25: =SUM(K6:K23) -> 85.432 | L25: =SUM(L6:L23) -> 210.798 | M25: =SUM(M6:M24) -> 1697.96
B26: 3 день
B27: № рец. | C27: Наименование блюд | D27: Выход | E27: Белки | F27: Жиры | G27: Углеводы | H27: Калорийность | I27: Выход | J27: Белки | K27: Жиры | L27: Углеводы | M27: Калорийн
B28: Завтрак | D28: 1-3 лет | I28: 3-7 лет
A29: день | B29: т/к 47 2010г№ 42 | C29: Суп молочный рисовый | D29: 150 | E29: 4.3 | F29: 4.97 | G29: 13.71 | H29: 117 | I29: 200 | J29: 9.25 | K29: 10.78 | L29: 34.21 | M29: 265.9
B30: т/к7.сб2011г. №397 | C30: Какао с молоком | D30: 150 | E30: 3.15 | F30: 2.72 | G30: 13 | H30: 89 | I30: 180 | J30: 3.67 | K30: 3.19 | L30: 15.82 | M30: 107
B31: т/к1.сб2011г № 1 | C31: Бутерброд с маслом | D31: 30 | E31: 2.01 | F31: 3.87 | G31: 12.13 | H31: 91.33 | I31: 35/5 | J31: 2.81 | K31: 3.97 | L31: 16.96 | M31: 114.66
B32: 2 завтрак
B33: т/к389.сб2011г. | C33: Сок | D33: 200 | E33: 0 | F33: 0 | G33: 26 | H33: 108 | I33: 200 | J33: 0 | K33: 0 | L33: 26 | M33: 108
B34: Обед
B36: Т/к 26,сб. 2006 г.№6 | C36: Борщ со сметаной | D36: 150 | E36: 1.09 | F36: 2.1 | G36: 7.64 | H36: 61.5 | I36: 250 | J36: 1.95 | K36: 2.3 | L36: 10.53 | M36: 70
B37: т/к20.сб2011г №168 | C37: Бульон костный | D37: 150 | E37: 28.12 | F37: 40.5 | G37: 1.04 | H37: 69.66 | I37: 187.3 | J37: 35.16 | K37: 50.67 | L37: 1.32 | M37: 87.15
B38: т/к20.сб2004г№152 | C38: Гуляш из говядины | D38: 60 | E38: 4.5 | F38: 5.7 | G38: 1.9 | H38: 123.6 | I38: 80 | J38: 6 | K38: 7.6 | L38: 2.47 | M38: 164.8
B39: т/к257.сб2011 | C39: Каша перловая рассып. | D39: 120 | E39: 4.2 | F39: 0 | G39: 26.9 | H39: 267 | I39: 150/5 | J39: 4.2 | K39: 4.395 | L39: 26.9 | M39: 166.99
B40: Т/к 11сб.2011 г.№376 Компот из сухофруктов | C40: Компот из сухофруктов | D40: 150 | E40: 0.33 | F40: 0.02 | G40: 20.83 | H40: 84.75 | I40: 180 | J40: 0.4 | K40: 0.02 | L40: 14.99 | M40: 101.7
B41: т/к122.сб2012г | C41: Хлеб пшеничный | D41: 30 | E41: 1.82 | F41: 0.642 | G41: 12.558 | H41: 94 | I41: 30 | J41: 1.82 | K41: 0.642 | L41: 12.558 | M41: 94
B42: т/к123.сб2012г | C42: Хлеб ржаной | D42: 40 | E42: 3.3 | F42: 0.6 | G42: 16.7 | H42: 87 | I42: 30 | J42: 3.3 | K42: 0.6 | L42: 16.7 | M42: 87
B43: Уплотненный полдник
B44: т/к287.сб2004г № 287 | C44: Коржик молочный | D44: 70 | E44: 4.8 | F44: 8.6 | G44: 48.9 | H44: 281 | I44: 70 | J44: 4.8 | K44: 8.6 | L44: 48.9 | M44: 281
B45: т/к12.сб2010г№368 | C45: Фрукт | D45: 100 | E45: 0.4 | F45: 0 | G45: 9.8 | H45: 144 | I45: 114 | J45: 0.4 | K45: 0 | L45: 9.8 | M45: 44
B46: т/к132.сб2007г№132 | C46: Чай с сахаром | D46: 150 | E46: 0.2 | F46: 0 | G46: 10.5 | H46: 42 | I46: 180 | J46: 0.2 | K46: 0 | L46: 12.6 | M46: 50.4
B47: т/к 35,сб 2004 № 242 | C47: Печенье | D47: 15 | E47: 1.28 | F47: 3.36 | G47: 13.7 | H47: 90.16 | I47: 30 | J47: 1.28 | K47: 3.36 | L47: 13.7 | M47: 90.16
C48: Итого | D48: =SUM(D29:D47) -> 1565 | E48: 59.5 | F48: 73.082 | G48: 235.308 | H48: 1750 | I48: 1731.3 | J48: 75.24 | K48: 96.127 | L48: 263.458 | M48: 1832.76
A49: 2 день | M49: Калорийность
B50: № рец. | C50: Наименование блюд | D50: Выход | E50: Белки | F50: Жиры | G50: Углеводы | H50: Калорийность | I50: Выход | J50: Белки | K50: Жиры | L50: Углеводы
B51: Завтрак | D51: 1-3 лет | I51: 3-7 лет
B52: т/к 17.сб2010г.№51 | C52: Каша манная жидкая | D52: 150 | E52: 3.38 | F52: 4.43 | G52: 22.73 | H52: 144.31 | I52: 200 | J52: 8.2 | K52: 9.9 | L52: 31.2 | M52: 246.8
B53: т/к13.сб2010г№7 | C53: Сыр | D53: 10 | E53: 2.32 | F53: 2.95 | G53: 0 | H53: 36 | I53: 15 | J53: 3.48 | K53: 4.43 | L53: 0 | M53: 54
B54: т/к147.сб2011г | C54: Хлеб пшеничный | D54: 30 | E54: 2.76 | F54: 0.35 | G54: 16.9 | H54: 82.6 | I54: 30 | J54: 2.76 | K54: 0.35 | L54: 16.9 | M54: 82.6
B55: Т/к 6, сб. 2010 г.№395 | C55: Кофейный напиток на молоке | D55: 150 | E55: 2.34 | F55: 2 | G55: 10.63 | H55: 70 | I55: 180 | J55: 2.85 | K55: 2.41 | L55: 14.36 | M55: 91
B56: 2 завтрак
B57: т/к18.сб2011г№251 | C57: Ряженка | D57: 150 | E57: 4.35 | F57: 4.8 | G57: 6 | H57: 88.5 | I57: 180 | J57: 5.22 | K57: 5.76 | L57: 7.2 | M57: 106.2
B58: Обед
B59: т/к 19 сб 2011 №33 | C59: Салат из свеклы | D59: 50 | E59: 0.64 | F59: 2.74 | G59: 3.76 | H59: 42.25 | I59: 50 | J59: 0.86 | K59: 3.65 | L59: 5.01 | M59: 56.34
B60: т/к41.сб2011г. №39 | C60: Суп картофельный с фрикадельками | D60: 150 | E60: 5.2 | F60: 4.24 | G60: 11.62 | H60: 133.8 | I60: 250 | J60: 6.5 | K60: 5.3 | L60: 14.52 | M60: 191
B61: т/к20.сб2011г №168 | C61: Бульон костный | D61: 150 | E61: 28.12 | F61: 40.5 | G61: 1.04 | H61: 69.66 | I61: 187.3 | J61: 35.16 | K61: 50.67 | L61: 1.32 | M61: 87.15
B62: т/к 62 сб.2001 г.№43 | C62: Котлета рыбная | D62: 60 | E62: 6.83 | F62: 3.81 | G62: 24.8 | H62: 99.75 | I62: 80 | J62: 21.7 | K62: 6.23 | L62: 5.17 | M62: 165.27
B63: т/к№18сб.2010 г.№34 | C63: Каша гречневая с маслом | D63: 100 | E63: 3 | F63: 4.27 | G63: 14.6 | H63: 175.33 | I63: 140/5 | J63: 2 | K63: 5 | L63: 26 | M63: 140
B64: Т/к 11сб.2011 г.№376 Компот из сухофруктов | C64: Компот из сухофруктов | D64: 150 | E64: 0.33 | F64: 0.02 | G64: 20.83 | H64: 84.75 | I64: 180 | J64: 0.4 | K64: 0.02 | L64: 14.99 | M64: 101.7
B65: т/к122.сб2012г | C65: Хлеб пшеничный | D65: 30 | E65: 1.82 | F65: 0.642 | G65: 12.558 | H65: 94 | I65: 30 | J65: 1.82 | K65: 0.642 | L65: 12.558 | M65: 94
B66: т/к123.сб2012г | C66: Хлеб ржаной | D66: 40 | E66: 3.3 | F66: 0.6 | G66: 16.7 | H66: 87 | I66: 30 | J66: 3.3 | K66: 0.6 | L66: 16.7 | M66: 87
B67: Уплотненный полдник
B68: т/к 55,2004г №130 | C68: Сырники со сг.молоком | D68: 110/15 | E68: 6.34 | F68: 7.2 | G68: 22.68 | H68: 281.1 | I68: 150/20 | J68: 11.2 | K68: 12.69 | L68: 40.2 | M68: 383.32
B69: т/к132.сб2007г№132 | C69: Чай с сахаром | D69: 150 | E69: 0.2 | F69: 0 | G69: 10.5 | H69: 42 | I69: 180 | J69: 0.2 | K69: 0 | L69: 12.6 | M69: 50.4
B70: т/к12.сб2010г№368 | C70: Фрукт | D70: 100 | E70: 0.4 | F70: 0 | G70: 9.8 | H70: 144 | I70: 114 | J70: 0.4 | K70: 0 | L70: 9.8 | M70: 44
B71: т/к55.сб2004г№262 | C71: Вафли | D71: 40 | E71: 2.4 | F71: 0.75 | G71: 12.15 | H71: 19 | I71: 40 | J71: 4.8 | K71: 1.5 | L71: 26.3 | M71: 38
C72: Итого | D72: =SUM(D53:D71) -> 1360 | E72: 70.35 | F72: 74.872 | G72: 194.568 | H72: 1549.74 | I72: 1546.3 | J72: 102.65 | K72: 99.252 | L72: 223.628 | M72: 1771.98
A74: 4 день
B75: № рец. | C75: Наименование блюд | D75: Выход | E75: Белки | F75: Жиры | G75: Углеводы | H75: Калорийность | I75: Выход | J75: Белки | K75: Жиры | L75: Углеводы | M75: Калор.
B76: Завтрак | D76: 1-3 лет | I76: 3-7 лет
A77: день | B77: т/к 14. 2010г.№168 | C77: Каша ячневая вязкая | D77: 160 | E77: 3.3 | F77: 4.06 | G77: 26.13 | H77: 154 | I77: 210 | J77: 4.39 | K77: 4.2 | L77: 33.19 | M77: 188
B78: т/к7.сб2011г. №397 | C78: Какао с молоком | D78: 150 | E78: 3.15 | F78: 2.72 | G78: 13 | H78: 89 | I78: 180 | J78: 3.67 | K78: 3.19 | L78: 15.82 | M78: 107
B79: т/к1.сб2011г № 1 | C79: Бутерброд с маслом | D79: 30 | E79: 2.01 | F79: 3.87 | G79: 12.13 | H79: 91.33 | I79: 35/5 | J79: 2.81 | K79: 3.97 | L79: 16.96 | M79: 114.66
B80: 2 завтрак
B81: Т/к7.сб2010г.№400 | C81: Молоко кипяченое | D81: 150 | E81: 4.58 | F81: 4.08 | G81: 7.58 | H81: 85 | I81: 180 | J81: 5.48 | K81: 4.88 | L81: 9.07 | M81: 102
B82: Обед
B83: Т/к 8, сб. 2010г.№11 | C83: Салат из репч. лука | D83: 45 | E83: 0.6 | F83: 2.8 | G83: 3.5 | H83: 41.4 | I83: 60 | J83: 0.8 | K83: 3.8 | L83: 4.7 | M83: 55.2
B84: т/к23.сб2011г№ 67 | C84: Щи из свежей капусты с картофелем | D84: 150 | E84: 1.36 | F84: 3.85 | G84: 5.35 | H84: 61.6 | I84: 250 | J84: 1.7 | K84: 4.82 | L84: 6.69 | M84: 77
B85: т/к20.сб2011г №168 | C85: Бульон костный | D85: 150 | E85: 28.12 | F85: 40.5 | G85: 1.04 | H85: 69.66 | I85: 187.3 | J85: 35.16 | K85: 50.67 | L85: 1.32 | M85: 87.15
B86: Т/к 15,сб.2010г.№291 | C86: Картофельная запеканка с мясом | D86: 150 | E86: 11.1 | F86: 8.2 | G86: 25.5 | H86: 221.3 | I86: 220 | J86: 16.7 | K86: 13.1 | L86: 35.3 | M86: 325.9
B87: Т/к 11сб.2011 г.№376 Компот из сухофруктов | C87: Компот из свеж.фруктов | D87: 150 | E87: 0.12 | F87: 0.12 | G87: 17.91 | H87: 73.2 | I87: 180 | J87: 0.14 | K87: 0.14 | L87: 21.49 | M87: 87.84
B88: т/к122.сб2012г | C88: Хлеб пшеничный | D88: 30 | E88: 1.82 | F88: 0.642 | G88: 12.558 | H88: 94 | I88: 30 | J88: 1.82 | K88: 0.642 | L88: 12.558 | M88: 94
B89: т/к123.сб2012г | C89: Хлеб ржаной | D89: 40 | E89: 3.3 | F89: 0.6 | G89: 16.7 | H89: 87 | I89: 30 | J89: 3.3 | K89: 0.6 | L89: 16.7 | M89: 87
B90: Уплотненный полдник
B91: т/к12.сб2010г№368 | C91: Фрукт | D91: 100 | E91: 0.4 | F91: 0 | G91: 9.8 | H91: 144 | I91: 114 | J91: 0.4 | K91: 0 | L91: 9.8 | M91: 44
B92: т/к118.сб2001г № 9 | C92: Булочка сдобная | D92: 60 | E92: 3.29 | F92: 7.07 | G92: 27.67 | H92: 171.58 | I92: 90 | J92: 6.79 | K92: 9.16 | L92: 41.7 | M92: 295.75
B93: т/к20.сб2004г. №233 | C93: Кисель | D93: 150 | E93: 0 | F93: 0 | G93: 13.5 | H93: 46.5 | I93: 200 | J93: 0 | K93: 0 | L93: 18 | M93: 60
B94: т/к4.сб2007г | C94: Йогурт | D94: 110 | E94: 3.7 | F94: 2.8 | G94: 5.6 | H94: 90 | I94: 110 | J94: 3.7 | K94: 2.8 | L94: 5.6 | M94: 90
C96: Итого | D96: =SUM(D77:D95) -> 1625 | E96: 66.85 | F96: 81.312 | G96: 197.968 | H96: 1519.57 | I96: 2041.3 | J96: 86.86 | K96: 101.972 | L96: 248.898 | M96: 1815.5
A97: 5 день
B98: № рец. | C98: Наименование блюд | D98: Выход | E98: Белки | F98: Жиры | G98: Углеводы | H98: Калорийность | I98: Выход | J98: Белки | K98: Жиры | L98: Углеводы | M98: Калорийность
B99: Завтрак | D99: 1-3 лет | I99: 3-7 лет
A100: день | B100: т/к 33сб 2011г.№168 | C100: Каша кукурузная | D100: 150 | E100: 4.67 | F100: 4.86 | G100: 20.94 | H100: 146 | I100: 200/5 | J100: 6.21 | K100: 5.28 | L100: 27.9 | M100: 184
B101: Т/к 6 сб2011 г.№395 | C101: Кофейный напиток с молоком | D101: 150 | E101: 2.34 | F101: 2 | G101: 10.63 | H101: 70 | I101: 180 | J101: 2.85 | K101: 2.41 | L101: 14.36 | M101: 91
B102: т/к1.сб2011г № 1 | C102: Бутерброд с маслом | D102: 30 | E102: 2.01 | F102: 3.87 | G102: 12.13 | H102: 91.33 | I102: 35/5 | J102: 2.81 | K102: 3.97 | L102: 16.96 | M102: 114.66
B103: т/к13.сб2010г№7 | C103: Сыр | D103: 10 | E103: 2.32 | F103: 2.95 | G103: 0 | H103: 36 | I103: 16 | J103: 3.48 | K103: 4.43 | L103: 0 | M103: 54
B104: 2 завтрак
B105: т/к389.сб2011г. | C105: Сок | D105: 200 | E105: 0 | F105: 0 | G105: 26 | H105: 108 | I105: 200 | J105: 0 | K105: 0 | L105: 26 | M105: 108
B106: Обед
B107: т/к 19 сб 2011 №33 | C107: Салат из свеклы | D107: 50 | E107: 0.64 | F107: 2.74 | G107: 3.76 | H107: 42.25 | I107: 50 | J107: 0.86 | K107: 3.65 | L107: 5.01 | M107: 56.34
B108: Т/к 37 сб 2011г. | C108: Суп картофельный с клецками | D108: 150/25 | E108: 29.28 | F108: 48.87 | G108: 45.2 | H108: 123.35 | I108: 250 | J108: 47.4 | K108: 75.24 | L108: 68.24 | M108: 190.88
B109: т/к37.сб2011г №37 | C109: Бульон куриный | D109: 112 | E109: 0.72 | F109: 0.06 | G109: 0.8 | H109: 6 | I109: 187.5 | J109: 1.22 | K109: 0.1 | L109: 1.2 | M109: 10
B110: Т/к 19сб.2011г №315 | C110: Рис отварной | D110: 100 | E110: 2.4 | F110: 3.6 | G110: 24.45 | H110: 139.8 | I110: 150 | J110: 3.6 | K110: 5.4 | L110: 36.8 | M110: 209.7
B111: Т/к 181сб 2001 | C111: Птица отварная | D111: 60/5 | E111: 15.6 | F111: 15.6 | G111: 0.83 | H111: 207.74 | I111: 60/5 | J111: 15.6 | K111: 15.6 | L111: 0.83 | M111: 207.74
B112: Т/к 89 сб2004 №226 | C112: Соус сметанный | D112: 20 | E112: 0.3 | F112: 3.37 | G112: 1.08 | H112: 30 | I112: 30 | J112: 0.45 | K112: 0.06 | L112: 1.62 | M112: 45
B113: Т/к 11сб.2011 г.№376 Компот из сухофруктов | C113: Компот из сухофруктов | D113: 150 | E113: 0.33 | F113: 0.02 | G113: 20.83 | H113: 84.75 | I113: 180 | J113: 0.4 | K113: 0.02 | L113: 14.99 | M113: 101.7
B114: т/к122.сб2012г | C114: Хлеб пшеничный | D114: 30 | E114: 1.82 | F114: 0.642 | G114: 12.558 | H114: 94 | I114: 30 | J114: 1.82 | K114: 0.642 | L114: 12.558 | M114: 94
B115: т/к123.сб2012г | C115: Хлеб ржаной | D115: 40 | E115: 3.3 | F115: 0.6 | G115: 16.7 | H115: 87 | I115: 30 | J115: 3.3 | K115: 0.6 | L115: 16.7 | M115: 87
B116: Уплотненный полдник
B117: т/к12.сб2010г№368 | C117: Фрукт | D117: 100 | E117: 0.4 | F117: 0 | G117: 9.8 | H117: 144 | I117: 114 | J117: 0.4 | K117: 0 | L117: 9.8 | M117: 44
B118: т/к132.сб2007г№132 | C118: Чай с сахаром | D118: 150 | E118: 0.2 | F118: 0 | G118: 10.5 | H118: 42 | I118: 180 | J118: 0.2 | K118: 0 | L118: 12.6 | M118: 50.4
B119: т/к 204 сб 2001 | C119: Макароны с овощами | D119: 100 | E119: 3.56 | F119: 4.64 | G119: 20.97 | H119: 153.33 | I119: 150 | J119: 5.34 | K119: 6.96 | L119: 31.45 | M119: 203.00
B120: т/к 35,сб 2004 | C120: Печенье | D120: 15 | E120: 1.28 | F120: 3.36 | G120: 13.7 | H120: 90.16 | I120: 30 | J120: 1.28 | K120: 3.36 | L120: 13.7 | M120: 90.16
C121: Итого | D121: =SUM(D100:D120) -> 1407 | E121: 71.17 | F121: 97.182 | G121: 250.878 | H121: 1695.71 | I121: 1777.5 | J121: 97.22 | K121: 127.722 | L121: 310.718 | M121: 1941.58
A122: 6 день
B123: № рец. | C123: Наименование блюд | D123: Выход | E123: Белки | F123: Жиры | G123: Углеводы | H123: Калорийность | I123: Выход | J123: Белки | K123: Жиры | L123: Углевод | M123: .Калор.
B124: Завтрак | D124: 1-3 лет | I124: 3-7 лет
A125: день | B125: Т/к 35,2011г.№185 | C125: Каша овсяная мол | D125: 130 | E125: 2.39 | F125: 4.20 | G125: 11.98 | H125: 95.61 | I125: 200 | J125: 3.79 | K125: 5.48 | L125: 19.03 | M125: 141
B126: т/к1.сб2011г № 1 | C126: Бутерброд с маслом | D126: 30 | E126: 2.01 | F126: 3.87 | G126: 12.13 | H126: 91.33 | I126: 35/5 | J126: 2.81 | K126: 3.97 | L126: 16.96 | M126: 114.66
B127: т/к № 76 сб.2004 г. №186 | C127: Чай с молоком | D127: 150 | E127: 0.67 | F127: 0.83 | G127: 11.25 | H127: 46.67 | I127: 180 | J127: 0.8 | K127: 1 | L127: 13.5 | M127: 56
B128: 2 завтрак
B129: Т/к7.сб2011г.№400 | C129: Молоко кипяченое | D129: 150 | E129: 4.58 | F129: 4.08 | G129: 7.58 | H129: 85 | I129: 180 | J129: 5.48 | K129: 4.88 | L129: 9.07 | M129: 102
B130: Обед
B131: т/к 59 сб 2004 | C131: Свекла тушеная | D131: 50 | E131: 0.71 | F131: 3 | G131: 4.18 | H131: 47 | I131: 50 | J131: 0.86 | K131: 3.65 | L131: 5.02 | M131: 56.34
B132: Т/к40.сб2005г.№204 | C132: Суп крестьянский | D132: 200 | E132: 1.85 | F132: 6.19 | G132: 12.34 | H132: 112.47 | I132: 200 | J132: 2.4 | K132: 3.17 | L132: 19.76 | M132: 106.5
B133: т/к20.сб2011г №168 | C133: Бульон костный | D133: 150 | E133: 28.12 | F133: 40.5 | G133: 1.04 | H133: 69.66 | I133: 187.3 | J133: 35.16 | K133: 50.67 | L133: 1.32 | M133: 87.15
B134: т/к52.сб2006г№126 | C134: Бестроганов из отварной говядины в молочно-сметанном соусе | D134: 80 | E134: 13.38 | F134: 12.62 | G134: 3.4 | H134: 180.65 | I134: 80 | J134: 13.38 | K134: 12.62 | L134: 3.4 | M134: 180.65
B135: т/к65сб.2004 №186 | C135: Каша гречневая рассыпчатая | D135: 100 | E135: 3 | F135: 4.27 | G135: 14.6 | H135: 175.33 | I135: 150 | J135: 4.5 | K135: 6.4 | L135: 21.9 | M135: 263
B136: Т/к 11сб.2011 г.№376 Компот из сухофруктов | C136: Компот из сухофруктов | D136: 150 | E136: 0.33 | F136: 0.02 | G136: 20.83 | H136: 84.75 | I136: 180 | J136: 0.4 | K136: 0.02 | L136: 14.99 | M136: 101.7
B137: т/к122.сб2012г | C137: Хлеб пшеничный | D137: 30 | E137: 1.82 | F137: 0.642 | G137: 12.558 | H137: 94 | I137: 30 | J137: 1.82 | K137: 0.642 | L137: 12.558 | M137: 94
B138: т/к123.сб2012г | C138: Хлеб ржаной | D138: 40 | E138: 3.3 | F138: 0.6 | G138: 16.7 | H138: 87 | I138: 30 | J138: 3.3 | K138: 0.6 | L138: 16.7 | M138: 87
B139: Уплотненный полдник
B140: т/к55.сб2004г№262 | C140: Вафли | D140: 40 | E140: 2.4 | F140: 0.75 | G140: 12.15 | H140: 19 | I140: 40 | J140: 4.8 | K140: 1.5 | L140: 26.3 | M140: 38
B141: т/к12.сб2010г№368 | C141: Фрукт | D141: 100 | E141: 0.4 | F141: 0 | G141: 9.8 | H141: 144 | I141: 114 | J141: 0.4 | K141: 0 | L141: 9.8 | M141: 44
B142: т/к199.сб2011г | C142: Биточки манные | D142: 80 | E142: 3.408 | F142: 2.504 | G142: 20.168 | H142: 116.8 | I142: 80 | J142: 6.39 | K142: 4.69 | L142: 37.81 | M142: 219
B143: т/к132.сб2007г№132 | C143: Чай с сахаром | D143: 150 | E143: 0.2 | F143: 0 | G143: 10.5 | H143: 42 | I143: 180 | J143: 0.2 | K143: 0 | L143: 12.6 | M143: 50.4
C144: Итого | D144: =SUM(D125:D143) -> 1630 | E144: =SUM(E125:E143) -> 68.57 | F144: =SUM(F125:F143) -> 84.08 | G144: =SUM(G125:G143) -> 181.21 | H144: =SUM(H125:H143) -> 1491.27 | I144: =SUM(I125:I143) -> 1881.3 | J144: =SUM(J125:J143) -> 86.49 | K144: =SUM(K125:K143) -> 99.29 | L144: =SUM(L125:L143) -> 240.72 | M144: =SUM(M125:M143) -> 1741.4
A145: 7 день | M145: Калорийность
B146: № рец. | C146: Наименование блюд | D146: Выход | E146: Белки | F146: Жиры | G146: Углеводы | H146: Калорийность | I146: Выход | J146: Белки | K146: Жиры | L146: Углеводы
B147: Завтрак | D147: 1-3 лет | I147: 3-7 лет
B148: т/к38.сб2011г.№46 | C148: Каша молочная "Дружба" | D148: 150 | E148: 3.45 | F148: 3.38 | G148: 21.23 | H148: 129.16 | I148: 200 | J148: 4.59 | K148: 4.9 | L148: 26.32 | M148: 168
B149: Т/к 6, сб. 2010 г.№395 | C149: Кофейный напиток на молоке | D149: 150 | E149: 2.34 | F149: 2 | G149: 10.63 | H149: 70 | I149: 180 | J149: 2.85 | K149: 2.41 | L149: 14.36 | M149: 91
B150: т/к1.сб2011г № 1 | C150: Бутерброд с маслом | D150: 30 | E150: 2.01 | F150: 3.87 | G150: 12.13 | H150: 91.33 | I150: 35/5 | J150: 2.81 | K150: 3.97 | L150: 16.96 | M150: 114.66
B151: т/к13.сб2010г№7 | C151: Сыр | D151: 10 | E151: 2.32 | F151: 2.95 | G151: 0 | H151: 36 | I151: 16 | J151: 3.48 | K151: 4.43 | L151: 0 | M151: 54
B152: 2 завтрак
B153: т/к18сб2004г№251 | C153: Ряженка | D153: 150 | E153: 4.35 | F153: 4.8 | G153: 6 | H153: 88.5 | I153: 180 | J153: 5.22 | K153: 5.76 | L153: 7.2 | M153: 106.2
B154: Обед
B155: т/к48.сб2004г. | C155: Капуста тушеная | D155: 50 | E155: 1.12 | F155: 2.48 | G155: 2.65 | H155: 40 | I155: 50 | J155: 1.12 | K155: 2.48 | L155: 2.65 | M155: 30
B156: т/к30.сб2011г.№98 | C156: Суп рисовый | D156: 150 | E156: 1.87 | F156: 3.07 | G156: 9.79 | H156: 81 | I156: 200 | J156: 2.24 | K156: 4.7 | L156: 9.8 | M156: 90.9
B157: т/к20.сб2011г №168 | C157: Бульон костный | D157: 150 | E157: 28.12 | F157: 40.5 | G157: 1.04 | H157: 69.66 | I157: 187.3 | J157: 35.16 | K157: 50.67 | L157: 1.32 | M157: 87.15
B158: т/к72.сб2006г.№42 | C158: Котлета мясная | D158: 60 | E158: 16.27 | F158: 4.67 | G158: 3.87 | H158: 123.9 | I158: 70 | J158: 11.1 | K158: 10.42 | L158: 4.28 | M158: 155.4
B159: т/к46.сб2006г №49 | C159: Макаронные изделия отварные | D159: 100 | E159: 3.66 | F159: 2.81 | G159: 17.58 | H159: 210.3 | I159: 150 | J159: 5.5 | K159: 4.2 | L159: 26.4 | M159: 265.5
B160: Т/к 11сб.2011 г.№376 Компот из сухофруктов | C160: Компот из сухофруктов | D160: 150 | E160: 0.33 | F160: 0.02 | G160: 20.83 | H160: 84.75 | I160: 180 | J160: 0.4 | K160: 0.02 | L160: 14.99 | M160: 101.7
B161: т/к122.сб2012г | C161: Хлеб пшеничный | D161: 30 | E161: 1.82 | F161: 0.642 | G161: 12.558 | H161: 94 | I161: 30 | J161: 1.82 | K161: 0.642 | L161: 12.558 | M161: 94
B162: т/к123.сб2012г | C162: Хлеб ржаной | D162: 40 | E162: 3.3 | F162: 0.6 | G162: 16.7 | H162: 87 | I162: 30 | J162: 3.3 | K162: 0.6 | L162: 16.7 | M162: 87
B163: Уплотненный полдник
B164: т/к319.сб2013г № 48 | C164: Запеканка из творога со сгущенным молоком | D164: 100/20 | E164: 17.67 | F164: 11.92 | G164: 22.71 | H164: 268 | I164: 100/20 | J164: 17.44 | K164: 18.5 | L164: 27 | M164: 348.9
B165: т/к12.сб2010г№368 | C165: Фрукт | D165: 100 | E165: 0.4 | F165: 0 | G165: 9.8 | H165: 144 | I165: 114 | J165: 0.4 | K165: 0 | L165: 9.8 | M165: 44
B166: т/к 20.сб2004г.№233 | C166: Кисель из концентрата | D166: 150 | E166: 0 | F166: 0 | G166: 13.5 | H166: 46.5 | I166: 200 | J166: 0 | K166: 0 | L166: 18 | M166: 60
B167: т/к55.сб2004г№262 | C167: Вафли | D167: 40 | E167: 2.4 | F167: 0.75 | G167: 12.15 | H167: 19 | I167: 40 | J167: 4.8 | K167: 1.5 | L167: 26.3 | M167: 38
C168: Итого | D168: =SUM(D149:D167) -> 1360 | E168: 87.98 | F168: 81.08 | G168: 171.938 | H168: 1553.94 | I168: 1627.3 | J168: 97.64 | K168: 110.30 | L168: 208.32 | M168: 1768.41
A169: 8 день | M169: Калорийность
B170: № рец. | C170: Наименование блюд | D170: Выход | E170: Белки | F170: Жиры | G170: Углеводы | H170: Калорийность | I170: Выход | J170: Белки | K170: Жиры | L170: Углеводы
B171: Завтрак | D171: 1-3 лет | I171: 3-7 лет
B172: Т/к 64, сб. 2007 г.№64 | C172: Каша молочная жидкая гречневая | D172: 120 | E172: 2.79 | F172: 2.95 | G172: 19.9 | H172: 134.87 | I172: 200 | J172: 3.71 | K172: 5.01 | L172: 28.83 | M172: 207.5
B173: т/к7.сб2011г. №397 | C173: Какао с молоком | D173: 150 | E173: 3.15 | F173: 2.72 | G173: 13 | H173: 89 | I173: 180 | J173: 3.67 | K173: 3.19 | L173: 15.82 | M173: 107
B174: т/к1.сб2011г № 1 | C174: Бутерброд с маслом | D174: 30 | E174: 2.01 | F174: 3.87 | G174: 12.13 | H174: 91.33 | I174: 35/5 | J174: 2.81 | K174: 3.97 | L174: 16.96 | M174: 114.66
B175: т/к13.сб2010г№7 | C175: Сыр | D175: 10 | E175: 2.32 | F175: 2.95 | G175: 0 | H175: 36 | I175: 15 | J175: 3.48 | K175: 4.43 | L175: 0 | M175: 54
B176: 2 завтрак
B177: т/к389.сб2011г. | C177: Сок | D177: 200 | E177: 0 | F177: 0 | G177: 26 | H177: 108 | I177: 200 | J177: 0 | K177: 0 | L177: 26 | M177: 108
B178: Обед
B179: т/к76.сб2011г№76 | C179: Рассольник ленинградский | D179: 150 | E179: 1.2 | F179: 3.06 | G179: 10.15 | H179: 73 | I179: 250 | J179: 1.99 | K179: 5.03 | L179: 16.92 | M179: 122
B180: т/к20.сб2011г №168 | C180: Бульон костный | D180: 150 | E180: 28.12 | F180: 40.5 | G180: 1.04 | H180: 69.66 | I180: 187.3 | J180: 35.16 | K180: 50.67 | L180: 1.32 | M180: 87.15
B181: т/к № 147 сб.2001 г. | C181: Фрикадельки рыбные | D181: 60/5 | E181: 16.27 | F181: 4.67 | G181: 3.87 | H181: 123.9 | I181: 70/5 | J181: 10.46 | K181: 5.41 | L181: 5.52 | M181: 80.82
B182: т/к48.сб2006г.№63 | C182: Картофельное пюре | D182: 150 | E182: 3.2 | F182: 4.7 | G182: 8 | H182: 223.9 | I182: 150 | J182: 3.39 | K182: 4.69 | L182: 27.66 | M182: 128.92
B183: Т/к 11сб.2011 г.№376 Компот из сухофруктов | C183: Компот из сухофруктов | D183: 150 | E183: 0.33 | F183: 0.02 | G183: 20.83 | H183: 84.75 | I183: 180 | J183: 0.4 | K183: 0.02 | L183: 14.99 | M183: 101.7
B184: т/к122.сб2012г | C184: Хлеб пшеничный | D184: 30 | E184: 1.82 | F184: 0.642 | G184: 12.558 | H184: 94 | I184: 30 | J184: 1.82 | K184: 0.642 | L184: 12.558 | M184: 94
B185: т/к123.сб2012г | C185: Хлеб ржаной | D185: 40 | E185: 3.3 | F185: 0.6 | G185: 16.7 | H185: 87 | I185: 30 | J185: 3.3 | K185: 0.6 | L185: 16.7 | M185: 87
B186: Уплотненный полдник
B187: Т/к 92, сб. 2010 г. | C187: Пирог открытый | D187: 50 | E187: 3.1 | F187: 1.6 | G187: 27.7 | H187: 137.5 | I187: 80 | J187: 4.9 | K187: 2.6 | L187: 44.3 | M187: 220
B188: т/к132.сб2007г№132 | C188: Чай с сахаром | D188: 150 | E188: 0.2 | F188: 0 | G188: 10.5 | H188: 42 | I188: 180 | J188: 0.2 | K188: 0 | L188: 12.6 | M188: 50.4
B189: т/к12.сб2010г№368 | C189: Фрукт | D189: 100 | E189: 0.4 | F189: 0 | G189: 9.8 | H189: 144 | I189: 114 | J189: 0.4 | K189: 0 | L189: 9.8 | M189: 44
B190: т/к4.сб2007г | C190: Йогурт | D190: 110 | E190: 3.7 | F190: 2.8 | G190: 5.6 | H190: 90 | I190: 110 | J190: 3.7 | K190: 2.8 | L190: 5.6 | M190: 90
C191: Итого | D191: =SUM(D173:D190) -> 1470 | E191: 69.12 | F191: 68.132 | G191: 177.878 | H191: 1494.04 | I191: 1706.3 | J191: 75.68 | K191: 84.052 | L191: 226.748 | M191: 1489.65
A192: 9 день | M192: Калорийность
B193: № рец. | C193: Наименование блюд | D193: Выход | E193: Белки | F193: Жиры | G193: Углеводы | H193: Калорийность | I193: Выход | J193: Белки | K193: Жиры | L193: Углеводы
B194: Завтрак | D194: 1-3 лет | I194: 3-7 лет
A195: день | B195: т/к171.сб2013г.№55 | C195: Молочный суп с мак.изд. | D195: 150 | E195: 4.3 | F195: 4 | G195: 14.2 | H195: 108.9 | I195: 200 | J195: 5.76 | K195: 5.2 | L195: 19 | M195: 146
B196: т/к1.сб2011г № 1 | C196: Бутерброд с маслом | D196: 30 | E196: 2.01 | F196: 3.87 | G196: 12.13 | H196: 91.33 | I196: 35/5 | J196: 2.81 | K196: 3.97 | L196: 16.96 | M196: 114.66
B197: Т/к 6, сб. 2010 г.№395 | C197: Кофейный напиток на молоке | D197: 150 | E197: 2.34 | F197: 2 | G197: 10.63 | H197: 70 | I197: 180 | J197: 2.85 | K197: 2.41 | L197: 14.36 | M197: 91
B198: т/к13.сб2010г№7 | C198: Сыр | D198: 10 | E198: 2.32 | F198: 2.95 | G198: 0 | H198: 36 | I198: 15 | J198: 3.48 | K198: 4.43 | L198: 0 | M198: 54
B199: 2 завтрак
B200: т/к2.сб2011г№8 | C200: Ряженка | D200: 150 | E200: 4.35 | F200: 4.8 | G200: 6 | H200: 88.5 | I200: 180 | J200: 5.22 | K200: 5.76 | L200: 7.2 | M200: 106.2
B201: Обед
B202: т/к36.сб2006г№99 | C202: Свекольник со сметаной | D202: 150 | E202: 1.15 | F202: 3.8 | G202: 7.47 | H202: 62.49 | I202: 250 | J202: 3.74 | K202: 3.54 | L202: 10.18 | M202: 87.78
B203: т/к20.сб2011г №168 | C203: Бульон костный | D203: 150 | E203: 28.12 | F203: 40.5 | G203: 1.04 | H203: 69.66 | I203: 187.3 | J203: 35.16 | K203: 50.67 | L203: 1.32 | M203: 87.15
B204: т/к33.сб2011г№ 304 | C204: Плов | D204: 150 | E204: 14.17 | F204: 11.96 | G204: 25.08 | H204: 264 | I204: 200 | J204: 19.33 | K204: 16.19 | L204: 33.99 | M204: 359
B205: Т/к 11сб.2011 г.№376 Компот из сухофруктов | C205: Компот из сухофруктов | D205: 150 | E205: 0.33 | F205: 0.02 | G205: 20.83 | H205: 84.75 | I205: 180 | J205: 0.4 | K205: 0.02 | L205: 14.99 | M205: 101.7
... 36 more rows
